bitfinex/quotes_ETHUSD_20251220
["timestamp","ask_amount","ask_price","bid_price","bid_amount"]
[1766192148923,0.443,2977.7,2977.3,0.5092]
[1766192149318,0.443,2977.7,2977.5,0.5092]
[1766192149512,0.443,2977.7,2977.5,1.7802]
[1766192149708,0.002,2977.9,2977.5,1.7802]
[1766192149894,0.443,2977.8,2977.5,1.7802]
[1766192150094,0.002,2977.7,2977.5,1.7802]
[1766192155619,0.443,2977.8,2977.4,3.35863194]
[1766192155820,0.002,2977.9,2977.5,3.35846709]
[1766192156011,0.002,2978.0,2977.8,1.271]
[1766192157323,0.002,2978.0,2977.7,0.5092]
[1766192158832,0.002,2977.7,2977.4,2.11555018]
[1766192159042,0.002,2977.7,2977.4,0.001]
[1766192161236,0.442,2977.6,2976.9,1.7812]
[1766192161420,0.442,2977.6,2976.9,0.001]
[1766192162541,0.002,2977.7,2976.9,0.001]
[1766192162712,0.442,2977.6,2976.9,0.001]
[1766192170619,0.442,2977.5,2976.9,0.001]
[1766192182747,0.04697435,2977.4,2976.5,3.36062109]
[1766192183050,0.04697435,2977.4,2976.6,0.33616211]
[1766192184772,0.442,2977.5,2976.6,5.43541404]
[1766192185052,0.442,2977.5,2976.7,1.7398]
[1766192187057,3.406942,2978.0,2976.7,1.7398]
[1766192187058,0.002,2979.2,2977.4,9.94608947]
[1766192187275,0.002,2979.6,2979.0,1.7398]
[1766192187556,0.439,2979.5,2979.1,0.17398]
[1766192187742,0.443,2979.5,2979.0,1.7398]
[1766192189148,0.443,2979.5,2979.1,3.35671847]
[1766192189573,0.002,2979.6,2979.1,3.35671847]
[1766192189774,0.443,2979.5,2979.1,3.35671847]
[1766192189982,0.445,2979.5,2979.1,3.35671847]
[1766192190861,0.445,2979.5,2979.2,0.445]
[1766192195262,0.445,2979.5,2979.2,3.8015685]
[1766192195574,0.443,2979.4,2979.2,3.8015685]
[1766192195985,0.09690625,2979.4,2979.2,0.445]
[1766192196285,0.445,2979.5,2979.2,0.445]
[1766192196453,0.002,2979.5,2979.2,0.445]
[1766192196651,0.445,2979.5,2979.2,0.445]
[1766192197289,0.002,2979.4,2979.2,0.445]
[1766192198078,0.002,2979.4,2979.2,3.80159189]
[1766192198390,0.002,2979.4,2979.2,3.35659189]
[1766192198885,0.002,2979.4,2979.3,0.445]
[1766192199809,0.002,2979.4,2979.2,1.7017]
[1766192200094,0.002,2979.4,2979.2,5.19268929]
[1766192200388,0.002,2979.4,2979.3,3.35649313]
[1766192201097,0.002,2979.4,2979.2,5.19275606]
[1766192201475,0.002,2979.4,2979.2,1.83618565]
[1766192201685,0.002,2979.4,2979.2,5.19278936]
[1766192202790,0.002,2979.4,2979.2,3.49108936]
[1766192206778,0.002,2979.4,2979.2,5.19278936]
[1766192207200,0.002,2979.4,2979.2,6.04774972]
[1766192208896,0.002,2979.6,2979.4,1.7017]
[1766192211784,0.002,2979.6,2979.3,0.443]
[1766192216182,0.002,2979.6,2979.3,2.1447]
[1766192221691,0.002,2979.6,2979.3,1.7017]
[1766192224201,0.002,2979.6,2979.3,1.7027]
[1766192239734,0.04697435,2979.3,2978.5,5.14412693]
[1766192240236,0.442,2979.2,2978.5,5.14412693]
[1766192240440,0.442,2979.2,2978.6,1.7868]
[1766192240906,0.442,2979.2,2978.6,1.3343]
[1766192241102,0.442,2979.2,2978.7,1.7868]
[1766192241736,0.442,2979.2,2978.7,5.14395993]
[1766192245217,0.442,2979.1,2978.7,5.14395993]
[1766192246510,0.442,2979.1,2978.6,0.001]
[1766192246719,0.8565512,2979.1,2978.1,5.14561733]
[1766192247138,0.8565512,2979.1,2978.2,3.35772232]
[1766192247331,0.8565512,2979.1,2978.2,1.7868]
[1766192247528,0.8565512,2979.1,2978.1,0.001]
[1766192247735,0.8565512,2979.1,2978.4,1.3343]
[1766192247936,0.8565512,2979.1,2978.4,1.7868]
[1766192250749,3.2132,2978.4,2978.2,4.02949115]
[1766192251154,0.442,2978.7,2978.3,3.35762011]
[1766192251528,0.442,2978.7,2978.2,4.02949574]
[1766192252137,0.442,2978.7,2978.4,0.001]
[1766192255265,0.002,2979.2,2978.4,0.001]
[1766192255266,0.002,2979.2,2978.4,3.94023695]
[1766192255565,4.145512,2979.3,2978.8,9.92888648]
[1766192255734,4.145512,2979.3,2978.6,1.7143]
[1766192255942,4.145512,2979.3,2978.5,9.92888648]
[1766192256132,4.145512,2979.3,2978.6,1.62566307]
[1766192256958,4.145512,2979.3,2978.7,1.7143]
[1766192257257,4.145512,2979.3,2978.8,1.7143]
[1766192257562,4.145512,2979.3,2979.0,1.2934]
[1766192257752,4.145512,2979.3,2979.0,1.7143]
[1766192258331,3.703512,2979.3,2979.0,1.7143]
[1766192259329,3.703512,2979.3,2979.0,0.4209]
[1766192259535,3.703512,2979.3,2979.0,1.7143]
[1766192261638,4.1180632,2979.3,2978.6,5.07155451]
[1766192261849,3.703512,2979.3,2978.6,5.07155451]
[1766192262046,9.97586083,2979.2,2978.4,0.001]
[1766192262246,9.92888648,2978.9,2978.0,0.001]
[1766192262446,0.48897435,2978.8,2978.0,0.001]
[1766192262654,1.04178608,2978.7,2978.0,0.001]
[1766192263684,0.48897435,2978.8,2978.1,1.7153]
[1766192265274,0.442,2978.7,2978.1,1.7153]
[1766192265959,0.04697435,2978.8,2978.1,1.7153]
[1766192266168,0.442,2980.1,2978.2,1.2934]
[1766192266169,0.442,2978.7,2978.2,1.2934]
[1766192266369,0.442,2978.7,2978.4,1.2934]
[1766192271083,0.442,2978.7,2978.4,1.2944]
[1766192275186,0.442,2978.7,2978.4,1.7153]
[1766192279099,3.705512,2979.3,2978.4,1.7153]
[1766192279270,0.81724864,2979.2,2978.4,1.7153]
[1766192280202,0.37524864,2979.2,2978.4,1.7153]
[1766192280366,0.37524864,2979.2,2978.4,0.001]
[1766192280567,0.442,2979.1,2978.6,1.7143]
[1766192281899,0.442,2979.1,2978.4,0.001]
[1766192282096,0.442,2979.1,2978.4,1.7153]
[1766192283390,0.89427606,2979.1,2978.4,1.7153]
[1766192284693,0.89627606,2979.1,2978.4,1.7153]
[1766192287100,0.89627606,2979.1,2978.4,0.001]
[1766192296710,4.25300444,2979.1,2978.4,0.001]
[1766192297512,0.89627606,2979.1,2978.4,0.001]
[1766192297810,1.46132326,2979.0,2978.4,0.001]
[1766192299591,4.25302075,2979.1,2978.1,0.001]
[1766192299911,4.25302075,2979.1,2978.4,0.001]
[1766192302017,0.89627606,2979.1,2978.4,0.001]
[1766192308318,4.2530097,2979.1,2978.4,0.001]
[1766192308619,0.04697435,2979.0,2978.1,0.001]
[1766192308824,0.51449762,2979.0,2978.1,0.001]
[1766192316801,3.87135951,2979.0,2978.1,0.001]
[1766192319332,0.04697435,2978.8,2978.1,0.001]
[1766192319532,0.04697435,2978.6,2977.5,3.35946064]
[1766192319723,0.04697435,2978.6,2977.5,1.8679]
[1766192319922,0.04697435,2978.6,2977.6,1.8669]
[1766192322035,3.40428353,2978.6,2977.6,1.8669]
[1766192322223,0.04697435,2978.6,2977.6,1.8669]
[1766192322535,0.38461714,2978.5,2977.6,1.8669]
[1766192322749,0.04697435,2978.6,2977.6,1.8669]
[1766192323637,3.40428373,2978.6,2977.6,1.8669]
[1766192323838,0.002,2979.6,2977.9,0.4382]
[1766192324142,0.442,2979.4,2978.6,1.8669]
[1766192324304,0.3727512,2979.1,2978.6,1.8669]
[1766192324501,0.3727512,2979.1,2977.9,1.4287]
[1766192324705,0.002,2979.1,2978.2,0.4382]
[1766192324926,0.002,2979.1,2978.4,1.8669]
[1766192326027,0.002,2979.0,2978.4,1.8669]
[1766192329619,0.444,2979.0,2978.4,1.8669]
[1766192330022,0.444,2979.0,2978.2,1.8669]
[1766192330410,0.444,2979.0,2978.2,3.35769083]
[1766192330636,0.444,2979.0,2978.4,0.4382]
[1766192330836,0.444,2979.0,2978.4,1.8669]
[1766192333246,0.444,2979.0,2978.4,1.4287]
[1766192333415,0.444,2979.0,2978.5,1.8669]
[1766192334142,0.444,2979.0,2978.2,1.8669]
[1766192334337,0.444,2979.0,2978.1,3.35777289]
[1766192334645,0.444,2979.0,2978.3,1.8669]
[1766192334958,0.444,2979.0,2978.3,1.4287]
[1766192335143,0.444,2979.0,2978.4,1.8669]
[1766192336006,0.444,2979.0,2978.3,3.35758753]
[1766192336217,0.444,2979.0,2978.6,1.8669]
[1766192337638,0.002,2979.0,2978.6,1.8669]
[1766192337823,0.444,2979.0,2978.6,1.8669]
[1766192342051,0.002,2979.0,2978.6,1.8669]
[1766192342252,0.444,2979.0,2978.4,0.4382]
[1766192342547,0.444,2979.0,2978.1,3.35774364]
[1766192342734,0.444,2979.0,2978.1,6.08301509]
[1766192342935,0.444,2979.0,2978.2,1.8669]
[1766192343855,0.444,2979.0,2978.2,3.3577312]
[1766192344055,0.444,2979.0,2978.3,1.8669]
[1766192346051,0.002,2979.0,2978.4,1.8377]
[1766192346252,0.002,2979.0,2978.5,0.4638]
[1766192346434,0.444,2979.0,2978.6,1.8377]
[1766192348859,0.444,2979.0,2978.2,3.35773285]
[1766192349157,0.444,2979.0,2978.3,1.8377]
[1766192349358,0.444,2979.0,2978.1,5.19550376]
[1766192349560,0.444,2979.0,2978.1,4.21326027]
[1766192349940,0.444,2979.0,2978.3,0.4638]
[1766192350141,0.444,2979.0,2978.3,1.8377]
[1766192350336,0.444,2979.0,2978.3,0.4638]
[1766192350539,0.444,2979.0,2978.4,1.8377]
[1766192350734,0.444,2979.0,2978.1,3.35784453]
[1766192350936,0.444,2979.0,2978.4,1.3739]
[1766192351142,0.444,2979.0,2978.4,1.8377]
[1766192358975,0.444,2979.0,2978.1,1.3739]
[1766192359142,0.444,2979.0,2978.2,1.8377]
[1766192360044,0.444,2979.0,2978.4,1.3739]
[1766192360252,0.444,2979.0,2978.4,1.8377]
[1766192363886,0.444,2979.0,2978.2,1.8377]
[1766192364092,0.444,2979.0,2978.1,3.35783573]
[1766192364254,0.444,2979.0,2978.1,4.80067261]
[1766192364444,0.444,2979.0,2978.2,0.4638]
[1766192364650,0.444,2979.0,2978.2,1.8377]
[1766192365682,0.444,2979.0,2978.3,0.4638]
[1766192365850,0.444,2979.0,2978.3,1.9348]
[1766192370752,0.82426321,2979.0,2978.3,1.9348]
[1766192371751,0.444,2979.0,2978.3,1.9348]
[1766192373984,0.442,2978.9,2978.5,1.471]
[1766192374161,0.442,2978.9,2978.6,1.8395]
[1766192374990,0.442,2978.9,2978.2,3.35773258]
[1766192375281,0.442,2978.9,2978.4,1.8138]
[1766192376277,0.442,2978.9,2978.0,1.8148]
[1766192376906,0.38478352,2978.8,2978.0,1.8148]
[1766192383313,0.442,2978.9,2978.0,1.8148]
[1766192385013,3.79902347,2978.9,2978.0,0.001]
[1766192385190,9.93446489,2978.8,2978.0,0.001]
[1766192389222,0.444,2978.9,2978.0,0.001]
[1766192389420,0.442,2978.8,2978.1,1.8138]
[1766192389726,0.442,2978.8,2977.9,3.35806654]
[1766192389931,0.442,2978.8,2978.1,1.8138]
[1766192393633,3.35895254,2978.9,2978.1,1.8138]
[1766192393931,0.442,2978.8,2978.1,1.8138]
[1766192397225,0.442,2978.8,2978.0,0.001]
[1766192397434,0.38009525,2978.7,2978.0,0.001]
[1766192398537,0.442,2978.8,2978.0,0.001]
[1766192398902,0.442,2978.8,2978.0,1.8148]
[1766192400434,0.002,2978.9,2978.0,1.8148]
[1766192400635,0.442,2978.8,2978.0,0.001]
[1766192400837,0.442,2978.8,2978.1,1.8138]
[1766192401651,0.442,2978.8,2977.7,0.442]
[1766192401811,0.442,2978.8,2975.3,8.2960766]
[1766192401812,13.34147443,2978.6,2977.3,1.8138]
[1766192402010,0.04697435,2978.4,2977.3,1.8138]
[1766192402226,0.442,2978.3,2977.3,1.8138]
[1766192402427,0.442,2978.3,2977.3,3.35874439]
[1766192402620,0.442,2978.3,2977.4,1.8138]
[1766192403220,0.442,2978.3,2977.5,1.8148]
[1766192404659,1.82035717,2978.3,2977.5,1.8148]
[1766192406845,1.82035717,2978.3,2977.6,1.9053]
[1766192407042,1.37381568,2978.7,2977.8,0.4109]
[1766192407232,0.442,2978.6,2978.1,1.9053]
[1766192407434,0.002,2978.8,2978.1,1.9053]
[1766192407435,3.35912965,2978.8,2978.1,1.9053]
[1766192407639,0.442,2978.7,2978.1,1.9053]
[1766192408859,0.442,2978.6,2978.1,1.9053]
[1766192410152,0.002,2978.8,2978.1,1.9053]
[1766192410328,0.87901164,2978.7,2978.1,1.9053]
[1766192410652,0.442,2978.7,2978.1,1.9053]
[1766192410849,0.442,2978.6,2978.1,1.9053]
[1766192411753,0.002,2978.8,2978.1,1.4944]
[1766192411936,0.442,2978.7,2978.1,1.9053]
[1766192412127,0.442,2978.6,2978.1,1.9053]
[1766192412957,0.442,2978.6,2978.2,1.4944]
[1766192413144,0.442,2978.6,2978.2,1.9053]
[1766192414458,0.002,2978.8,2978.2,1.9053]
[1766192414763,0.442,2978.6,2978.2,1.9053]
[1766192414950,0.33828699,2978.8,2978.2,1.9053]
[1766192415152,0.442,2978.7,2978.2,1.9053]
[1766192415464,0.442,2978.6,2978.2,1.9053]
[1766192419554,0.33828699,2978.8,2978.2,1.9053]
[1766192419863,0.442,2978.7,2978.2,1.9053]
[1766192421167,0.002,2978.6,2978.2,1.9053]
[1766192424470,0.444,2978.6,2977.9,3.35799447]
[1766192424779,0.002,2978.8,2978.2,3.35772961]
[1766192424941,0.002,2978.8,2978.2,1.9053]
[1766192425771,0.002,2978.8,2978.4,1.811]
[1766192429338,0.002,2978.8,2978.1,3.35784095]
[1766192429543,0.002,2978.9,2978.5,0.4192]
[1766192429744,0.002,2978.9,2978.7,1.811]
[1766192434574,0.002,2978.9,2978.3,9.93576826]
[1766192434746,0.002,2978.9,2978.4,1.37354551]
[1766192435469,0.002,2978.9,2978.5,1.8638]
[1766192437276,0.002,2979.0,2978.5,1.8638]
[1766192437478,0.002,2979.3,2978.7,1.8638]
[1766192437774,0.002,2979.3,2978.8,1.17995683]
[1766192437989,0.002,2979.3,2978.9,1.8638]
[1766192439351,0.002,2979.3,2978.8,4.67148031]
[1766192439553,0.002,2979.3,2978.9,1.8638]
[1766192440705,0.002,2979.3,2978.9,5.22073047]
[1766192440860,0.002,2979.6,2979.1,1.8638]
[1766192444210,0.002,2979.3,2979.1,1.8638]
[1766192445001,0.002,2979.6,2979.2,1.8638]
[1766192445552,0.002,2979.6,2979.2,1.4492]
[1766192445757,0.002,2979.6,2979.3,0.4146]
[1766192446280,0.002,2979.6,2979.3,0.44816493]
[1766192446482,0.002,2979.6,2979.3,2.42277114]
[1766192446675,0.002,2979.6,2979.3,2.38920621]
[1766192449988,0.002,2979.6,2979.3,0.52540621]
[1766192450285,0.002,2979.6,2979.4,1.8638]
[1766192450796,0.002,2979.6,2979.3,0.52540621]
[1766192451091,0.002,2979.6,2979.0,1.22999964]
[1766192451265,0.002,2979.6,2979.0,0.57648158]
[1766192451470,0.002,2979.6,2979.0,0.442]
[1766192453615,0.002,2979.6,2979.0,2.3058]
[1766192454910,0.002,2979.6,2979.3,1.4492]
[1766192455064,0.002,2979.6,2979.3,1.8638]
[1766192455494,0.002,2979.6,2979.1,1.8638]
[1766192455696,0.002,2979.6,2979.2,0.23058]
[1766192455890,0.002,2979.6,2979.2,2.09438]
[1766192457773,0.002,2979.6,2979.3,1.8638]
[1766192460120,0.002,2979.7,2979.2,3.58718028]
[1766192460321,0.002,2979.7,2979.5,1.8638]
[1766192460495,0.002,2979.9,2979.5,0.18638]
[1766192461018,0.002,2980.1,2979.8,0.4146]
[1766192461223,0.002,2980.1,2979.5,0.18638]
[1766192461224,0.002,2980.1,2979.9,1.8638]
[1766192461515,0.002,2980.1,2979.6,1.8638]
[1766192461721,0.002,2980.1,2979.6,1.99825581]
[1766192461908,0.002,2980.1,2979.7,0.21846358]
[1766192463305,0.002,2980.1,2979.7,2.08226358]
[1766192469906,0.11289583,2980.8,2979.9,0.4063]
[1766192470120,3.46770396,2980.8,2979.9,1.8412]
[1766192470325,4.1941344,2980.8,2979.9,1.8412]
[1766192470536,4.1941344,2980.8,2979.8,0.13444994]
[1766192471238,4.1941344,2980.8,2979.9,0.4063]
[1766192471403,4.1941344,2980.8,2979.9,1.8412]
[1766192474827,0.442,2980.7,2979.9,1.8412]
[1766192475130,0.442,2980.7,2979.9,2.03876499]
[1766192475427,3.79694938,2980.7,2979.9,2.03876499]
[1766192476009,0.442,2980.7,2979.9,0.19756499]
[1766192476215,0.442,2980.7,2979.9,1.4349]
[1766192476536,0.442,2980.7,2980.0,1.8412]
[1766192477521,3.79693925,2980.7,2980.0,1.8412]
[1766192478136,7.1518785,2980.7,2980.0,1.8412]
[1766192478307,7.1518785,2980.7,2979.6,1.8422]
[1766192478507,0.79932048,2980.6,2979.6,3.09767661]
[1766192478730,0.79932048,2980.6,2979.6,1.25647661]
[1766192478932,0.79932048,2980.6,2979.6,3.09767661]
[1766192479233,0.79932048,2980.6,2979.6,1.41571861]
[1766192479436,3.35514175,2980.5,2979.6,0.001]
[1766192479921,3.35514175,2980.5,2979.6,1.8419]
[1766192481629,3.35514175,2980.5,2979.6,0.001]
[1766192481835,0.85180258,2980.4,2979.6,0.001]
[1766192482658,0.442,2980.3,2979.6,0.001]
[1766192483829,3.79736802,2980.3,2979.6,0.001]
[1766192484627,3.79736802,2980.3,2979.1,1.8409]
[1766192484628,9.92673982,2980.1,2979.1,1.8409]
[1766192485008,9.92673982,2980.1,2979.1,1.00857117]
[1766192485208,0.99267398,2980.0,2978.9,2.2829]
[1766192485410,0.442,2979.9,2978.9,3.29151186]
[1766192485616,3.79783244,2979.9,2978.9,3.29151186]
[1766192486506,3.79783244,2979.9,2978.9,1.45061186]
[1766192487430,9.92673982,2979.7,2978.6,3.35727326]
[1766192487926,9.92673982,2979.7,2978.7,3.35714626]
[1766192488839,0.442,2979.6,2978.7,3.35714626]
[1766192489041,0.442,2979.6,2978.5,0.443]
[1766192489250,1.03687398,2979.5,2978.5,0.443]
[1766192489709,1.03687398,2979.5,2978.5,3.80037905]
[1766192489909,1.03687398,2979.5,2978.5,5.64127905]
[1766192490326,1.03687398,2979.5,2978.5,0.443]
[1766192490832,1.03687398,2979.5,2979.0,0.001]
[1766192491010,0.5843878,2979.4,2979.0,0.001]
[1766192495038,1.0263878,2979.4,2979.0,0.001]
[1766192502846,14.30952482,2979.4,2978.5,2.2845]
[1766192503145,14.30952482,2979.4,2978.5,0.443]
[1766192503444,1.76658176,2979.3,2978.5,0.443]
[1766192503647,1.76658176,2979.3,2979.0,0.001]
[1766192503948,9.92673982,2979.1,2978.5,0.001]
[1766192506150,0.442,2979.0,2978.5,0.001]
[1766192506451,1.47732191,2979.0,2978.5,0.001]
[1766192516743,2.20858176,2979.3,2978.5,1.8425]
[1766192517045,0.442,2979.3,2978.5,1.8425]
[1766192517354,0.442,2979.3,2978.5,0.001]
[1766192517558,9.92673982,2979.2,2978.5,0.001]
[1766192517761,0.002,2979.0,2978.5,0.001]
[1766192530377,0.99487398,2979.0,2978.5,0.001]
[1766192534143,0.442,2978.9,2978.5,0.001]
[1766192534380,0.442,2978.9,2978.4,0.001]
[1766192544887,10.37866589,2978.9,2978.4,0.001]
[1766192545076,13.73564163,2978.9,2978.4,0.001]
[1766192545255,1.47305156,2978.8,2978.4,0.001]
[1766192545761,3.79897574,2978.9,2978.4,0.001]
[1766192550469,17.14143047,2978.9,2978.0,0.001]
[1766192550674,15.90306,2978.8,2978.0,0.001]
[1766192551686,15.90306,2978.8,2977.8,0.001]
[1766192552262,16.91218755,2978.8,2977.8,0.001]
[1766192552467,10.11970026,2978.7,2977.8,0.001]
[1766192552783,9.93850464,2978.6,2977.5,0.001]
[1766192552974,9.93850464,2978.3,2977.5,0.001]
[1766192553172,9.93850464,2978.3,2977.3,0.001]
[1766192553806,10.94784609,2978.3,2977.8,0.001]
[1766192553974,1.09948204,2978.2,2977.8,0.001]
[1766192554303,0.442,2978.1,2977.8,0.001]
[1766192554517,9.93850464,2978.0,2977.2,0.001]
[1766192554664,9.93850464,2978.0,2977.0,0.442]
[1766192554864,1.70962996,2977.9,2977.0,0.442]
[1766192555790,7.15779498,2978.1,2976.9,0.001]
[1766192555994,8.16718737,2978.1,2977.0,1.7862]
[1766192556870,8.16718737,2978.1,2976.9,0.001]
[1766192557068,0.04697435,2978.0,2976.9,0.001]
[1766192557270,9.98547899,2978.0,2976.9,0.001]
[1766192557566,1.47947689,2977.9,2976.9,0.001]
[1766192557787,1.47947689,2977.9,2976.9,1.7872]
[1766192560396,4.83761177,2977.9,2976.9,1.7872]
[1766192560700,5.84702114,2977.9,2976.9,1.7872]
[1766192561692,5.84702114,2977.9,2977.0,0.001]
[1766192561889,0.58939955,2977.8,2977.0,0.001]
[1766192562091,0.442,2977.7,2977.0,1.7872]
[1766192562481,0.442,2977.7,2977.0,0.001]
[1766192564097,3.80030542,2977.7,2977.0,0.001]
[1766192564397,3.80030542,2977.7,2976.9,0.001]
[1766192564573,0.4389705,2977.6,2976.9,0.001]
[1766192566391,0.442,2977.5,2976.9,0.001]
[1766192568700,0.442,2977.5,2977.0,0.001]
[1766192570798,0.13460195,2977.6,2977.0,0.001]
[1766192570990,0.442,2977.5,2977.1,1.3909]
[1766192571189,0.002,2978.1,2977.1,1.7862]
[1766192571526,0.002,2978.1,2977.3,1.3909]
[1766192571720,0.002,2978.1,2977.4,0.3953]
[1766192571920,0.002,2978.1,2977.6,0.3953]
[1766192572221,0.002,2978.1,2977.3,1.3909]
[1766192572422,0.002,2978.1,2977.7,1.3909]
[1766192572620,0.002,2978.1,2977.8,1.7862]
[1766192573026,0.002,2978.1,2977.3,3.35871431]
[1766192573230,0.002,2978.1,2977.5,1.7862]
[1766192573622,0.002,2978.1,2977.4,3.35862614]
[1766192573813,0.002,2978.1,2977.5,1.7862]
[1766192574215,0.002,2978.1,2977.5,5.14470241]
[1766192574521,0.002,2978.1,2977.6,1.7862]
[1766192574720,0.002,2978.1,2977.6,2.30067024]
[1766192575128,0.002,2978.1,2977.6,0.51447024]
[1766192575326,0.002,2978.1,2977.7,1.7862]
[1766192588536,3.40594294,2978.9,2977.7,1.7862]
[1766192588537,0.002,2978.9,2977.7,3.35829667]
[1766192588737,0.444,2978.9,2978.2,0.4061]
[1766192589036,0.444,2978.9,2978.2,1.823]
[1766192589837,0.444,2978.9,2977.9,0.442]
[1766192590138,0.444,2978.9,2977.9,2.265]
[1766192590436,0.38028472,2978.8,2977.9,2.265]
[1766192590912,0.38028472,2978.8,2977.9,0.442]
[1766192591237,0.38028472,2978.8,2978.0,1.823]
[1766192591406,0.38228472,2978.8,2978.0,1.823]
[1766192593439,0.002,2978.8,2978.0,5.18093509]
[1766192593642,0.002,2978.8,2978.1,1.823]
[1766192593938,0.002,2978.8,2978.1,1.4169]
[1766192594141,0.002,2978.8,2978.4,0.4061]
[1766192594445,0.002,2978.8,2978.5,1.823]
[1766192600923,0.002,2978.8,2978.2,0.4061]
[1766192601123,0.002,2978.8,2978.2,1.823]
[1766192602048,0.002,2978.8,2978.0,1.823]
[1766192602259,0.002,2978.8,2978.1,1.823]
[1766192603550,0.002,2978.8,2978.0,4.00337852]
[1766192603724,0.002,2978.8,2978.3,1.4169]
[1766192603927,0.002,2978.8,2978.3,1.823]
[1766192604341,0.002,2978.8,2978.1,1.4169]
[1766192604656,0.002,2978.8,2978.2,3.56389784]
[1766192605036,0.002,2979.0,2978.3,3.79958007]
[1766192605236,0.002,2979.0,2978.7,0.4061]
[1766192605553,0.002,2979.0,2978.7,1.823]
[1766192612157,0.002,2979.3,2978.3,3.79961398]
[1766192612329,0.002,2979.3,2978.8,1.3401]
[1766192612524,0.002,2979.3,2978.8,1.7428]
[1766192613659,0.002,2979.3,2978.6,1.3401]
[1766192613866,0.002,2979.3,2978.7,1.7428]
[1766192615261,0.002,2979.3,2978.5,3.3573231]
[1766192615466,0.002,2979.3,2978.8,1.702]
[1766192617167,0.002,2979.3,2978.6,1.702]
[1766192617366,0.002,2979.3,2978.6,1.3145]
[1766192617564,0.002,2979.3,2978.9,0.3875]
[1766192617870,0.002,2979.3,2978.9,1.702]
[1766192618369,0.002,2979.3,2978.5,10.7924424]
[1766192618569,0.002,2979.3,2979.1,1.702]
[1766192619339,6.802,2979.8,2978.9,1.3145]
[1766192619678,6.802,2979.8,2979.2,1.702]
[1766192619877,0.002,2980.0,2979.3,0.3875]
[1766192620172,0.442,2979.9,2979.5,0.3875]
[1766192620352,0.442,2979.9,2979.4,1.702]
[1766192620548,0.002,2980.0,2979.1,0.442]
[1766192620744,0.002,2980.0,2979.1,0.82187897]
[1766192621864,0.002,2980.0,2979.3,0.3875]
[1766192622047,0.002,2980.0,2979.4,1.702]
[1766192622542,0.002,2980.0,2979.4,1.3145]
[1766192622743,0.002,2980.0,2979.5,0.3875]
[1766192622943,0.002,2979.9,2979.5,1.702]
[1766192630456,0.002,2979.9,2979.1,0.82187897]
[1766192630667,0.002,2979.9,2979.1,2.52387897]
[1766192630967,10.27577832,2979.9,2978.8,1.703]
[1766192631151,10.27577832,2979.9,2978.9,2.144]
[1766192631687,10.27577832,2979.9,2979.0,1.702]
[1766192631859,10.27577832,2979.9,2978.9,3.79893873]
[1766192632073,10.27577832,2979.9,2979.1,1.702]
[1766192634310,0.34285731,2979.9,2979.1,1.702]
[1766192635086,0.34285731,2979.9,2979.1,0.3875]
[1766192635307,0.444,2979.9,2979.1,0.3875]
[1766192635451,0.444,2979.9,2979.3,1.702]
[1766192635651,0.444,2979.9,2979.1,3.35667222]
[1766192635885,0.002,2979.9,2979.5,0.3875]
[1766192636094,0.002,2979.9,2979.2,1.702]
[1766192636257,0.002,2979.9,2979.3,0.50586722]
[1766192636456,0.002,2979.9,2979.5,1.702]
[1766192636786,0.002,2979.9,2979.3,3.86231253]
[1766192637193,0.002,2979.9,2979.5,0.3875]
[1766192637488,0.002,2979.9,2979.3,3.86231253]
[1766192637680,0.002,2979.9,2979.5,1.702]
[1766192637882,0.002,2979.9,2979.5,1.3145]
[1766192638058,0.002,2979.9,2979.6,1.702]
[1766192638689,0.002,2979.9,2979.6,1.7019996]
[1766192639698,0.002,2980.0,2979.6,1.3145]
[1766192639898,0.002,2980.0,2979.8,1.3145]
[1766192640763,0.002,2980.0,2979.9,0.3875]
[1766192640965,0.002,2980.0,2979.9,1.702]
[1766192649017,0.002,2980.1,2979.9,1.702]
[1766192650011,0.002,2980.1,2979.7,4.48078117]
[1766192650211,0.002,2980.1,2980.0,0.4118]
[1766192650511,0.002,2980.1,2980.0,1.7576]
[1766192653214,0.002,2980.2,2980.0,1.7576]
[1766192661322,0.002,2980.5,2980.0,1.3458]
[1766192661498,0.002,2980.5,2980.0,1.7576]
[1766192661699,0.002,2980.5,2980.0,1.97826781]
[1766192662724,0.002,2980.5,2980.1,1.7576]
[1766192663821,0.002,2980.5,2980.2,1.7576]
[1766192664001,0.002,2980.5,2980.3,1.3458]
[1766192664202,0.002,2980.5,2980.2,1.7576]
[1766192664427,0.002,2980.6,2980.1,3.35558384]
[1766192664428,0.002,2980.6,2980.4,1.7576]
[1766192665019,0.002,2981.1,2980.3,0.51131838]
[1766192665226,0.002,2981.1,2980.6,1.3458]
[1766192665404,0.002,2981.1,2980.9,1.7576]
[1766192666998,0.002,2981.1,2980.5,3.35511159]
[1766192667206,0.002,2981.1,2980.9,1.7081]
[1766192667401,0.002,2981.1,2980.6,1.32880326]